fUST/lending_fUST_20250808
["ID","MTS","AMOUNT","RATE_DAILY","PERIOD"]
[377951543,1754626251226,-151.0,0.000249,7]
[377951545,1754626251235,-151.0,0.000249,7]
[377951547,1754626251245,-308.606634,0.000249,7]
[377951549,1754626251256,-308.606634,0.000249,7]
[377951551,1754626251266,-151.0,0.000249,7]
[377951553,1754626251275,-151.0,0.000249,7]
[377951555,1754626251285,-151.0,0.000249,7]
[377951557,1754626251295,-160.0,0.000249,7]
[377951559,1754626251304,-151.0,0.000249,7]
[377951561,1754626251314,-160.0,0.000249,7]
[377951563,1754626251324,-842.78739015,0.000249,7]
[377951566,1754626251334,-527.68033864,0.000249,7]
[377951568,1754626251344,-817.416682,0.000249,7]
[377951570,1754626251353,-817.416682,0.000249,7]
[377951572,1754626251363,-151.0,0.000249,7]
[377951574,1754626251373,-54531.19340533,0.000249,2]
[377951605,1754626251667,-466.28,0.00021917,2]
[377951607,1754626251676,-319.12,0.00022075,10]
[377955499,1754626323262,150.0,0.00027656,30]
[377955826,1754626709346,16079.0,0.000301,120]
[377955828,1754626769596,20026.46,0.00031884,30]
[377955832,1754626806852,150.23380208,0.00030136,120]
[377955833,1754626818980,150.0,0.00026541,30]
[377955834,1754626819396,150.0,0.00027805,30]
[377955835,1754626824482,2000.0,0.00028,30]
[377955836,1754626831134,520.4,0.00028,30]
[377955840,1754626867566,2000.0,0.00028,30]
[377955844,1754626903167,462.58,0.00028,30]
[377955845,1754626907126,1001.32,0.00023,60]
[377955847,1754626953188,168.513237,0.00013699,2]
[377955853,1754627070897,24900.0,0.00021085,2]
[377955895,1754627218754,5004.99,0.00030137,120]
[377955950,1754627327902,26650.66707187,0.0002489,30]
[377956003,1754627432635,-2000.0,0.000218,2]
[377956005,1754627432645,-2000.0,0.000218,3]
[377956007,1754627432655,-1348.80286448,0.000218,4]
[377956216,1754627438439,-651.19713552,0.000218,4]
[377956218,1754627438449,-1479.30654129,0.000218,5]
[377956220,1754627438460,-520.69345871,0.000218,5]
[377956222,1754627438470,-551.37407762,0.00021804,2]
[377956225,1754627438483,-648.62592238,0.00021804,2]
[377956227,1754627438497,-300.0,0.00021806,2]
[377956229,1754627438507,-286.89,0.00021807,10]
[377956231,1754627438517,-843.85383689,0.00021817,2]
[377956233,1754627438530,-1166.96194687,0.00021817,2]
[377956235,1754627438543,-857.80998,0.00021817,2]
[377956238,1754627438559,-108493.52180086,0.00021817,2]
[377956240,1754627438571,-204.85,0.00021907,3]
[377956242,1754627438591,-614.59,0.00021907,3]
[377956244,1754627438603,-460.0,0.00021917,2]
[377956246,1754627438613,-460.0,0.00021917,2]
[377956248,1754627438623,-460.0,0.00021917,2]
[377956250,1754627438633,-460.0,0.00021917,2]
[377956252,1754627438642,-462.35404799,0.00021917,2]
[377956254,1754627438651,-460.0,0.00021917,2]
[377956256,1754627438661,-172.52269591,0.00021917,2]
[377956258,1754627438670,-460.0,0.00021917,2]
[377956260,1754627438679,-460.0,0.00021917,2]
[377956262,1754627438688,-471.50295182,0.00021917,2]
[377956264,1754627438697,-464.03258716,0.00021917,2]
[377956266,1754627438707,-460.0,0.00021917,2]
[377956268,1754627438716,-460.0,0.00021917,2]
[377956270,1754627438725,-466.79228192,0.00021917,2]
[377956272,1754627438735,-460.0,0.00021917,2]
[377956274,1754627438744,-460.0,0.00021917,2]
[377956276,1754627438754,-460.0,0.00021917,2]
[377956278,1754627438763,-460.0,0.00021917,2]
[377956280,1754627438772,-460.0,0.00021917,2]
[377956282,1754627438781,-460.0,0.00021917,2]
[377956284,1754627438791,-462.55694337,0.00021917,2]
[377956286,1754627438800,-460.0,0.00021917,2]
[377956288,1754627438809,-464.63153416,0.00021917,2]
[377956290,1754627438817,-500.0,0.00021917,2]
[377956292,1754627438826,-461.59449695,0.00021917,2]
[377956294,1754627438836,-460.0,0.00021917,2]
[377956296,1754627438845,-460.0,0.00021917,2]
[377956298,1754627438855,-461.23551443,0.00021917,2]
[377956300,1754627438864,-463.31347293,0.00021917,2]
[377956301,1754627438875,-460.0,0.00021917,2]
[377956304,1754627438884,-460.0,0.00021917,2]
[377956306,1754627438893,-677.28,0.00021917,2]
[377956307,1754627438903,-462.58684665,0.00021917,2]
[377956310,1754627438912,-461.27359405,0.00021917,2]
[377956311,1754627438922,-461.43337557,0.00021917,2]
[377956314,1754627438931,-460.0,0.00021917,2]
[377956315,1754627438940,-462.64989351,0.00021917,2]
[377956318,1754627438950,-460.0,0.00021917,2]
[377956319,1754627438959,-460.0,0.00021917,2]
[377956321,1754627438968,-465.49726323,0.00021917,2]
[377956323,1754627438977,-500.0,0.00021917,2]
[377956325,1754627438987,-463.63277398,0.00021917,2]
[377956327,1754627438996,-460.0,0.00021917,2]
[377956329,1754627439005,-461.31536364,0.00021917,2]
[377956331,1754627439015,-462.52330408,0.00021917,2]
[377956334,1754627439033,-460.0,0.00021917,2]
[377956337,1754627439044,-460.0,0.00021917,2]
[377956339,1754627439054,-460.0,0.00021917,2]
[377956341,1754627439064,-462.95960453,0.00021917,2]
[377956343,1754627439074,-497.74,0.00021917,2]
[377956345,1754627439084,-460.0,0.00021917,2]
[377956347,1754627439094,-465.1738927,0.00021917,2]
[377956349,1754627439104,-460.0,0.00021917,2]
[377956351,1754627439115,-465.25074483,0.00021917,2]
[377956353,1754627439125,-460.0,0.00021917,2]
[377956355,1754627439135,-465.02596269,0.00021917,2]
[377956357,1754627439145,-462.18303735,0.00021917,2]
[377956359,1754627439155,-460.0,0.00021917,2]
[377956361,1754627439164,-462.95087909,0.00021917,2]
[377956363,1754627439174,-460.0,0.00021917,2]
[377956365,1754627439183,-461.89882808,0.00021917,2]
[377956367,1754627439193,-466.73462039,0.00021917,2]
[377956369,1754627439202,-460.0,0.00021917,2]
[377956371,1754627439212,-460.0,0.00021917,2]
[377956373,1754627439221,-1511.4,0.00021917,2]
[377956375,1754627439230,-470.41666188,0.00021917,2]
[377956378,1754627439241,-2390.55,0.00021917,2]
[377956379,1754627439250,-460.0,0.00021917,2]
[377956380,1754627439260,-460.0,0.00021917,2]
[377956381,1754627439269,-460.0,0.00021917,2]
[377956382,1754627439279,-468.90566731,0.00021917,2]
[377956383,1754627439288,-460.0,0.00021917,2]
[377956384,1754627439297,-460.0,0.00021917,2]
[377956385,1754627439307,-460.0,0.00021917,2]
[377956386,1754627439316,-460.0,0.00021917,2]
[377956387,1754627439325,-460.0,0.00021917,2]
[377956388,1754627439335,-460.0,0.00021917,2]
[377956389,1754627439344,-460.0,0.00021917,2]
[377956390,1754627439353,-460.95538926,0.00021917,2]
[377956391,1754627439363,-461.67436499,0.00021917,2]
[377956392,1754627439372,-390.67951853,0.00021917,2]
[377956393,1754627439382,-460.0,0.00021917,2]
[377956394,1754627439391,-460.0,0.00021917,2]
[377956395,1754627439400,-460.0,0.00021917,2]
[377956396,1754627439409,-460.0,0.00021917,2]
[377956397,1754627439419,-460.0,0.00021917,2]
[377956398,1754627439428,-460.0,0.00021917,2]
[377956399,1754627439438,-465.1461113,0.00021917,2]
[377956400,1754627439447,-462.09783289,0.00021917,2]
[377956401,1754627439455,-466.63602259,0.00021917,2]
[377956402,1754627439465,-1277.7,0.00021917,2]
[377956403,1754627439475,-464.12131073,0.00021917,2]
[377956405,1754627439487,-461.7417833,0.00021917,2]
[377956407,1754627439498,-460.0,0.00021917,2]
[377956409,1754627439507,-467.80763129,0.00021917,2]
[377956411,1754627439516,-461.73951861,0.00021917,2]
[377956413,1754627439526,-460.0,0.00021917,2]
[377956415,1754627439535,-467.2410421,0.00021917,2]
[377956417,1754627439545,-464.00560029,0.00021917,2]
[377956419,1754627439554,-460.0,0.00021917,2]
[377956421,1754627439564,-461.78940662,0.00021917,2]
[377956423,1754627439574,-462.20963154,0.00021917,2]
[377956425,1754627439585,-467.07391796,0.00021917,2]
[377956427,1754627439594,-460.0,0.00021917,2]
[377956429,1754627439603,-464.34793065,0.00021917,2]
[377956431,1754627439613,-460.0,0.00021917,2]
[377956433,1754627439622,-462.20804971,0.00021917,2]
[377956435,1754627439631,-327.01088423,0.00021917,2]
[377956437,1754627439641,-460.0,0.00021917,2]
[377956439,1754627439651,-460.0,0.00021917,2]
[377956442,1754627439661,-460.0,0.00021917,2]
[377956443,1754627439670,-460.0,0.00021917,2]
[377956446,1754627439679,-462.3545649,0.00021917,2]
[377956448,1754627439689,-477.07154328,0.00021917,2]
[377956450,1754627439698,-460.0,0.00021917,2]
[377956451,1754627439707,-460.0,0.00021917,2]
[377956454,1754627439717,-460.0,0.00021917,2]
[377956456,1754627439726,-373.38467414,0.00021917,2]
[377956458,1754627439736,-463.23397234,0.00021917,2]
[377956460,1754627439745,-471.63,0.00021917,2]
[377956462,1754627439755,-556.13,0.00021917,2]
[377956463,1754627439764,-460.0,0.00021917,2]
[377956465,1754627439774,-460.0,0.00021917,2]
[377956467,1754627439783,-460.0,0.00021917,2]
[377956469,1754627439792,-466.97884425,0.00021917,2]
[377956471,1754627439802,-460.0,0.00021917,2]
[377956474,1754627439811,-460.0,0.00021917,2]
[377956476,1754627439821,-460.0,0.00021917,2]
[377956478,1754627439830,-460.0,0.00021917,2]
[377956480,1754627439840,-949.33,0.00021917,2]
[377956482,1754627439850,-460.0,0.00021917,2]
[377956484,1754627439859,-460.0,0.00021917,2]
[377956486,1754627439868,-521.94,0.00021917,2]
[377956488,1754627439878,-460.0,0.00021917,2]
[377956490,1754627439887,-460.0,0.00021917,2]
[377956492,1754627439896,-886.53,0.00021917,2]
[377956494,1754627439905,-462.21550561,0.00021917,2]
[377956496,1754627439914,-465.14098851,0.00021917,2]
[377956498,1754627439924,-2431.97,0.00021917,2]
[377956500,1754627439933,-460.0,0.00021917,2]
[377956502,1754627439942,-1195.68,0.00021917,2]
[377956504,1754627439951,-460.0,0.00021917,2]
[377956506,1754627439960,-460.0,0.00021917,2]
[377956508,1754627439970,-460.0,0.00021917,2]
[377956510,1754627439979,-460.0,0.00021917,2]
[377956512,1754627439988,-460.0,0.00021917,2]
[377956514,1754627439997,-502.51,0.00021917,2]
[377956516,1754627440007,-460.0,0.00021917,2]
[377956519,1754627440016,-1565.58,0.00021917,2]
[377956522,1754627440025,-468.957175,0.00021917,2]
[377956525,1754627440034,-460.0,0.00021917,2]
[377956527,1754627440043,-464.63729852,0.00021917,2]
[377956529,1754627440053,-463.61799848,0.00021917,2]
[377956531,1754627440062,-263.16303542,0.00021917,2]
[377956533,1754627440071,-460.0,0.00021917,2]
[377956535,1754627440080,-460.0,0.00021917,2]
[377956538,1754627440090,-460.0,0.00021917,2]
[377956541,1754627440103,-466.36650162,0.00021917,2]
[377956543,1754627440113,-460.0,0.00021917,2]
[377956545,1754627440122,-464.92002599,0.00021917,2]
[377956547,1754627440132,-460.75198626,0.00021917,2]
[377956549,1754627440142,-460.0,0.00021917,2]
[377956551,1754627440151,-462.38107018,0.00021917,2]
[377956553,1754627440161,-460.0,0.00021917,2]
[377956555,1754627440171,-460.0,0.00021917,2]
[377956557,1754627440181,-460.0,0.00021917,2]
[377956559,1754627440191,-460.0,0.00021917,2]
[377956561,1754627440200,-464.94482249,0.00021917,2]
[377956563,1754627440213,-461.83005283,0.00021917,2]
[377956566,1754627440223,-464.91002562,0.00021917,2]
[377956568,1754627440233,-462.5430415,0.00021917,2]
[377956570,1754627440243,-461.90342057,0.00021917,2]
[377956572,1754627440252,-460.0,0.00021917,2]
[377956574,1754627440262,-460.0,0.00021917,2]
[377956576,1754627440271,-460.0,0.00021917,2]
[377956578,1754627440281,-460.0,0.00021917,2]
[377956580,1754627440290,-1827.33,0.00021917,2]
[377956582,1754627440300,-460.0,0.00021917,2]
[377956584,1754627440309,-460.0,0.00021917,2]
[377956586,1754627440319,-460.0,0.00021917,2]
[377956588,1754627440328,-466.23093371,0.00021917,2]
[377956590,1754627440337,-460.0,0.00021917,2]
[377956592,1754627440347,-461.31786231,0.00021917,2]
[377956594,1754627440356,-460.0,0.00021917,2]
[377956596,1754627440366,-181.93860045,0.00021917,2]
[377956598,1754627440376,-460.0,0.00021917,2]
[377956600,1754627440385,-460.0,0.00021917,2]
[377956602,1754627440394,-461.52201201,0.00021917,2]
[377956604,1754627440403,-366.15572504,0.00021917,2]
[377956606,1754627440412,-460.0,0.00021917,2]
[377956608,1754627440421,-498.03333,0.00021917,2]
[377956610,1754627440431,-500.0,0.00021917,2]
[377956612,1754627440440,-500.0,0.00021917,2]
[377956614,1754627440449,-500.0,0.00021917,2]
[377956616,1754627440458,-548.92142068,0.00021917,2]
[377956618,1754627440467,-500.0,0.00021917,2]
[377956620,1754627440477,-495.58,0.00021917,2]
[377956622,1754627440491,-460.0,0.00021917,2]
[377956624,1754627440500,-460.0,0.00021917,2]
[377956626,1754627440509,-460.0,0.00021917,2]
[377956628,1754627440519,-460.0,0.00021917,2]
[377956630,1754627440529,-804.32,0.00021917,2]
[377956632,1754627440539,-207.21574985,0.00021917,2]
[377956634,1754627440548,-464.90391791,0.00021917,2]
[377956636,1754627440559,-460.0,0.00021917,2]
[377956638,1754627440568,-460.0,0.00021917,2]
[377956640,1754627440578,-462.08034064,0.00021917,2]
[377956642,1754627440587,-462.21060441,0.00021917,2]
[377956644,1754627440596,-3105.5,0.00021917,2]
[377956646,1754627440606,-468.16734684,0.00021917,2]
[377956648,1754627440616,-462.20154669,0.00021917,2]
[377956650,1754627440626,-460.0,0.00021917,2]
[377956652,1754627440636,-702.19,0.00021917,2]
[377956654,1754627440645,-463.79848337,0.00021917,2]
[377956656,1754627440654,-460.0,0.00021917,2]
[377956658,1754627440663,-460.0,0.00021917,2]
[377956660,1754627440672,-460.0,0.00021917,2]
[377956662,1754627440681,-460.0,0.00021917,2]
[377956664,1754627440691,-460.84292605,0.00021917,2]
[377956666,1754627440700,-663.57,0.00021917,2]
[377956668,1754627440709,-463.37528638,0.00021917,2]
[377956670,1754627440720,-460.0,0.00021917,2]
[377956672,1754627440729,-460.0,0.00021917,2]
[377956674,1754627440738,-460.0,0.00021917,2]
[377956676,1754627440747,-460.0,0.00021917,2]
[377956678,1754627440756,-460.0,0.00021917,2]
[377956680,1754627440765,-460.0,0.00021917,2]
[377956682,1754627440775,-958.85,0.00021917,2]
[377956684,1754627440784,-1124.98,0.00021917,2]
[377956686,1754627440793,-460.0,0.00021917,2]
[377956688,1754627440803,-460.0,0.00021917,2]
[377956690,1754627440812,-460.0,0.00021917,2]
[377956692,1754627440821,-460.0,0.00021917,2]
[377956694,1754627440831,-460.0,0.00021917,2]
[377956696,1754627440840,-460.0,0.00021917,2]
[377956698,1754627440849,-460.0,0.00021917,2]
[377956700,1754627440859,-467.86588394,0.00021917,2]
[377956702,1754627440868,-194.08769897,0.00021917,2]
[377956704,1754627440878,-460.0,0.00021917,2]
[377956706,1754627440887,-460.0,0.00021917,2]
[377956708,1754627440897,-462.03660966,0.00021917,2]
[377956710,1754627440906,-460.0,0.00021917,2]
[377956712,1754627440915,-460.0,0.00021917,2]
[377956714,1754627440925,-462.47809755,0.00021917,2]
[377956716,1754627440934,-517.08,0.00021917,2]
[377956719,1754627440945,-463.09949068,0.00021917,2]
[377956721,1754627440954,-460.0,0.00021917,2]
[377956723,1754627440963,-2828.36,0.00021917,2]
[377956725,1754627440972,-1139.65,0.00021917,2]
[377956727,1754627440981,-460.0,0.00021917,2]
[377956729,1754627440991,-461.80608349,0.00021917,2]
[377956731,1754627441002,-462.16815178,0.00021917,2]
[377956733,1754627441013,-460.0,0.00021917,2]
[377956735,1754627441021,-460.0,0.00021917,2]
[377956737,1754627441031,-460.0,0.00021917,2]
[377956739,1754627441040,-460.0,0.00021917,2]
[377956741,1754627441049,-462.49681076,0.00021917,2]
[377956743,1754627441058,-464.38463811,0.00021917,2]
[377956745,1754627441067,-460.0,0.00021917,2]
[377956747,1754627441077,-460.0,0.00021917,2]
[377956749,1754627441086,-460.0,0.00021917,2]
[377956751,1754627441095,-460.0,0.00021917,2]
[377956753,1754627441105,-464.84990574,0.00021917,2]
[377956755,1754627441114,-952.22,0.00021917,2]
[377956757,1754627441124,-462.62062111,0.00021917,2]
[377956759,1754627441134,-460.0,0.00021917,2]
[377956761,1754627441144,-460.0,0.00021917,2]
[377956763,1754627441153,-460.0,0.00021917,2]
[377956765,1754627441162,-462.39875871,0.00021917,2]
[377956767,1754627441172,-500.0,0.00021973,2]
[377956769,1754627441181,-500.0,0.00021973,2]
[377956771,1754627441190,-502.94317901,0.00021973,2]
[377956773,1754627441200,-500.0,0.00021973,2]
[377956775,1754627441210,-500.0,0.00021973,2]
[377956777,1754627441220,-502.56808039,0.00021973,2]
[377956779,1754627441230,-500.0,0.00021973,2]
[377956781,1754627441240,-500.0,0.00021973,2]
[377956783,1754627441251,-500.0,0.00021973,2]
[377956804,1754627441430,-500.0,0.00021973,2]
[377956806,1754627441440,-157.96650711,0.00021973,2]
[377956808,1754627441449,-500.1783326,0.00021973,2]
[377956810,1754627441459,-253.93567524,0.00021973,2]
[377956812,1754627441467,-500.0,0.00021973,2]
[377956814,1754627441476,-500.0,0.00021973,2]
[377956816,1754627441489,-500.76936073,0.00021973,2]
[377956818,1754627441498,-167.40743538,0.00021973,2]
[377956820,1754627441507,-258.68912709,0.00021973,2]
[377956822,1754627441515,-500.54494029,0.00021973,2]
[377956824,1754627441524,-500.0,0.00021973,2]
[377956826,1754627441533,-500.0,0.00021973,2]
[377956828,1754627441542,-516.22474315,0.00021973,2]
[377956830,1754627441551,-500.0,0.00021973,2]
[377956831,1754627441560,-449.85673753,0.00021973,2]
[377956833,1754627441570,-500.0,0.00021973,2]
[377956835,1754627441580,-606.07813515,0.00021973,2]
[377956837,1754627441589,-501.02211396,0.00021973,2]
[377956840,1754627441599,-500.0,0.00021973,2]
[377956842,1754627441609,-500.0,0.00021973,2]
[377956844,1754627441618,-502.19512686,0.00021973,2]
[377956846,1754627441630,-500.0,0.00021973,2]
[377956848,1754627441639,-500.33433039,0.00021973,2]
[377956850,1754627441649,-500.0,0.00021973,2]
[377956852,1754627441659,-500.0,0.00021973,2]
[377956854,1754627441668,-501.19133655,0.00021973,2]
[377956856,1754627441678,-500.0,0.00022084,2]
[377956858,1754627441687,-14713.35602589,0.00022091,2]
[377956860,1754627441696,-500.0,0.0002219,2]
[377956862,1754627441706,-500.0,0.0002219,2]
[377956864,1754627441715,-500.0,0.0002219,2]
[377956866,1754627441725,-460.0,0.00022191,2]
[377956868,1754627441734,-460.0,0.00022191,2]
[377956870,1754627441743,-431.97111399,0.00022191,2]
[377956872,1754627441752,-185.02682391,0.00022191,2]
[377956874,1754627441761,-460.0,0.00022191,2]
[377956876,1754627441770,-460.0,0.00022191,2]
[377956878,1754627441779,-289.68256049,0.00022191,2]
[377956880,1754627441788,-460.0,0.00022191,2]
[377956881,1754627441797,-460.0,0.00022191,2]
[377956883,1754627441807,-460.0,0.00022191,2]
[377956886,1754627441816,-460.0,0.00022191,2]
[377956888,1754627441826,-460.0,0.00022191,2]
[377956890,1754627441835,-677.28,0.00022191,2]
[377956892,1754627441845,-460.0,0.00022191,2]
[377956894,1754627441854,-460.0,0.00022191,2]
[377956895,1754627441863,-460.0,0.00022191,2]
[377956897,1754627441873,-511.15761533,0.00022191,2]
[377956899,1754627441885,-460.0,0.00022191,2]
[377956902,1754627441894,-497.74,0.00022191,2]
[377956904,1754627441904,-460.0,0.00022191,2]
[377956906,1754627441913,-460.0,0.00022191,2]
[377956908,1754627441922,-460.0,0.00022191,2]
[377956910,1754627441931,-460.0,0.00022191,2]
[377956911,1754627441940,-398.05791166,0.00022191,2]
[377956913,1754627441949,-1511.4,0.00022191,2]
[377956915,1754627441959,-2390.55,0.00022191,2]
[377956917,1754627441969,-460.0,0.00022191,2]
[377956919,1754627441978,-460.0,0.00022191,2]
[377956921,1754627441988,-460.0,0.00022191,2]
[377956923,1754627441997,-460.0,0.00022191,2]
[377956926,1754627442007,-460.0,0.00022191,2]
[377956927,1754627442016,-460.0,0.00022191,2]
[377956929,1754627442026,-460.0,0.00022191,2]
[377956931,1754627442035,-460.0,0.00022191,2]
[377956933,1754627442044,-460.0,0.00022191,2]
[377956935,1754627442053,-1277.7,0.00022191,2]
[377956937,1754627442063,-460.0,0.00022191,2]
[377956939,1754627442072,-466.96153122,0.00022191,2]
[377956941,1754627442082,-460.0,0.00022191,2]
[377956943,1754627442091,-460.0,0.00022191,2]
[377956946,1754627442100,-460.0,0.00022191,2]
[377956948,1754627442110,-460.0,0.00022191,2]
[377956949,1754627442119,-460.0,0.00022191,2]
[377956952,1754627442131,-460.0,0.00022191,2]
[377956954,1754627442139,-460.0,0.00022191,2]
[377956955,1754627442149,-471.63,0.00022191,2]
[377956958,1754627442158,-556.13,0.00022191,2]
[377956959,1754627442168,-460.0,0.00022191,2]
[377956962,1754627442177,-327.64062398,0.00022191,2]
[377956964,1754627442186,-949.33,0.00022191,2]
[377956965,1754627442195,-460.0,0.00022191,2]
[377956967,1754627442205,-521.94,0.00022191,2]
[377956970,1754627442215,-460.0,0.00022191,2]
[377956971,1754627442224,-886.53,0.00022191,2]
[377956974,1754627442233,-2431.97,0.00022191,2]
[377956975,1754627442242,-254.74890797,0.00022191,2]
[377956978,1754627442252,-1195.68,0.00022191,2]
[377956980,1754627442261,-467.8277769,0.00022191,2]
[377956981,1754627442271,-460.0,0.00022191,2]
[377956983,1754627442280,-502.51,0.00022191,2]
[377956985,1754627442289,-460.0,0.00022191,2]
[377956987,1754627442298,-1565.58,0.00022191,2]
[377956989,1754627442307,-460.0,0.00022191,2]
[377956991,1754627442316,-533.2207174,0.00022191,2]
[377956993,1754627442325,-460.0,0.00022191,2]
[377956995,1754627442334,-460.0,0.00022191,2]
[377956997,1754627442343,-460.0,0.00022191,2]
[377956999,1754627442352,-460.0,0.00022191,2]
[377957001,1754627442361,-180.23528354,0.00022191,2]
[377957003,1754627442370,-460.0,0.00022191,2]
[377957005,1754627442383,-460.0,0.00022191,2]
[377957007,1754627442392,-1827.33,0.00022191,2]
[377957009,1754627442401,-460.0,0.00022191,2]
[377957011,1754627442410,-460.0,0.00022191,2]
[377957013,1754627442419,-460.0,0.00022191,2]
[377957015,1754627442428,-475.96201818,0.00022191,2]
[377957017,1754627442437,-460.0,0.00022191,2]
[377957020,1754627442447,-495.58,0.00022191,2]
[377957022,1754627442456,-460.0,0.00022191,2]
[377957024,1754627442466,-460.0,0.00022191,2]
[377957025,1754627442475,-460.0,0.00022191,2]
[377957027,1754627442488,-804.32,0.00022191,2]
[377957030,1754627442498,-460.0,0.00022191,2]
[377957032,1754627442508,-3105.5,0.00022191,2]
[377957034,1754627442517,-460.0,0.00022191,2]
[377957035,1754627442527,-702.19,0.00022191,2]
[377957038,1754627442536,-460.0,0.00022191,2]
[377957039,1754627442546,-460.0,0.00022191,2]
[377957042,1754627442558,-460.0,0.00022191,2]
[377957044,1754627442570,-663.57,0.00022191,2]
[377957045,1754627442579,-460.0,0.00022191,2]
[377957047,1754627442588,-460.0,0.00022191,2]
[377957050,1754627442598,-460.0,0.00022191,2]
[377957051,1754627442608,-460.0,0.00022191,2]
[377957053,1754627442617,-460.0,0.00022191,2]
[377957054,1754627442628,-958.85,0.00022191,2]
[377957055,1754627442637,-1124.98,0.00022191,2]
[377957056,1754627442647,-460.0,0.00022191,2]
[377957057,1754627442657,-460.0,0.00022191,2]
[377957058,1754627442666,-460.0,0.00022191,2]
[377957059,1754627442675,-460.0,0.00022191,2]
[377957060,1754627442684,-460.0,0.00022191,2]
[377957061,1754627442693,-460.0,0.00022191,2]
[377957062,1754627442702,-460.0,0.00022191,2]
[377957063,1754627442712,-460.0,0.00022191,2]
[377957064,1754627442721,-460.0,0.00022191,2]
[377957065,1754627442730,-517.08,0.00022191,2]
[377957066,1754627442740,-460.0,0.00022191,2]
[377957067,1754627442749,-2828.36,0.00022191,2]
[377957068,1754627442758,-1139.65,0.00022191,2]
[377957069,1754627442767,-460.0,0.00022191,2]
[377957070,1754627442776,-472.92625898,0.00022191,2]
[377957071,1754627442785,-460.0,0.00022191,2]
[377957072,1754627442794,-460.0,0.00022191,2]
[377957073,1754627442803,-460.0,0.00022191,2]
[377957074,1754627442812,-473.61030092,0.00022191,2]
[377957075,1754627442821,-460.0,0.00022191,2]
[377957076,1754627442830,-952.22,0.00022191,2]
[377957077,1754627442839,-460.0,0.00022191,2]
[377957078,1754627442849,-460.0,0.00022191,2]
[377957079,1754627442858,-351.5772536,0.00022383,2]
[377957080,1754627442867,-500.17449559,0.0002246,2]
[377957081,1754627442876,-508.48063719,0.0002246,2]
[377957082,1754627442885,-500.0,0.0002246,2]
[377957083,1754627442894,-500.0,0.0002246,2]
[377957084,1754627442903,-500.0,0.00022464,2]
[377957085,1754627442913,-500.0,0.00022464,2]
[377957086,1754627442922,-500.0,0.00022464,2]
[377957087,1754627442931,-428.21,0.00022465,2]
[377957088,1754627442941,-460.0,0.00022465,2]
[377957089,1754627442950,-470.81773065,0.00022465,2]
[377957090,1754627442959,-460.0,0.00022465,2]
[377957091,1754627442968,-522.67720192,0.00022465,2]
[377957092,1754627442978,-460.0,0.00022465,2]
[377957093,1754627442987,-460.0,0.00022465,2]
[377957094,1754627442997,-677.28,0.00022465,2]
[377957095,1754627443006,-460.0,0.00022465,2]
[377957096,1754627443016,-460.0,0.00022465,2]
[377957097,1754627443025,-460.0,0.00022465,2]
[377957098,1754627443034,-460.0,0.00022465,2]
[377957099,1754627443043,-497.74,0.00022465,2]
[377957100,1754627443052,-460.0,0.00022465,2]